[Event "Masterklassen-Elit 2025"]
[Site "Uppsala, Sweden"]
[Date "2025.07.03"]
[Round "6.1"]
[White "Olsson, William"]
[Black "Wiedenkeller, Michael"]
[Result "1-0"]
[TimeControl "90 min for 40 move + 30 min with an increment of 30 sec starting move 1"]
[WhiteTitle "IM"]
[BlackTitle "IM"]
[WhiteFideId "1741721"]
[BlackFideId "1700146"]
[WhiteElo "2365"]
[BlackElo "2384"]

1. Nf3 {[%clk 01:29:17]} {[%emt 00:01:42]} d5 {[%clk 01:30:04]} {[%emt
00:00:57]} 2. g3 {[%clk 01:29:38]} {[%emt 00:00:08]} g6 {[%clk 01:29:32]}
{[%emt 00:01:02]} 3. Bg2 {[%clk 01:27:40]} {[%emt 00:02:29]} Bg7 {[%clk
01:29:53]} {[%emt 00:00:08]} 4. O-O {[%clk 01:28:05]} {[%emt 00:00:06]} e5
{[%clk 01:27:21]} {[%emt 00:03:01]} 5. d3 {[%clk 01:28:31]} {[%emt 00:00:06]}
Ne7 {[%clk 01:24:05]} {[%emt 00:03:45]} 6. Nbd2 {[%clk 01:28:51]} {[%emt
00:00:09]} O-O {[%clk 01:22:46]} {[%emt 00:01:49]} 7. e4 {[%clk 01:27:52]}
{[%emt 00:01:29]} Nbc6 {[%clk 01:13:18]} {[%emt 00:09:58]} 8. a4 {[%clk
01:21:38]} {[%emt 00:06:44]} a5 {[%clk 01:10:38]} {[%emt 00:03:10]} 9. c3
{[%clk 01:19:11]} {[%emt 00:02:57]} h6 {[%clk 01:06:47]} {[%emt 00:04:21]} 10.
Re1 {[%clk 01:16:15]} {[%emt 00:03:27]} Be6 {[%clk 00:57:41]} {[%emt 00:09:36]}
11. Qe2 {[%clk 01:10:07]} {[%emt 00:06:37]} Re8 {[%clk 00:56:20]} {[%emt
00:01:52]} 12. exd5 {[%clk 01:04:52]} {[%emt 00:05:45]} Nxd5 {[%clk 00:54:22]}
{[%emt 00:02:27]} 13. Nc4 {[%clk 01:04:21]} {[%emt 00:01:01]} Bf5 {[%clk
00:52:36]} {[%emt 00:02:17]} 14. Nfd2 {[%clk 01:01:03]} {[%emt 00:03:47]} Qd7
{[%clk 00:49:06]} {[%emt 00:04:00]} 15. Ne4 {[%clk 00:56:01]} {[%emt 00:05:32]}
Rad8 {[%clk 00:48:54]} {[%emt 00:00:41]} 16. Nc5 {[%clk 00:52:44]} {[%emt
00:03:48]} Qc8 {[%clk 00:49:15]} {[%emt 00:00:09]} 17. Ne3 {[%clk 00:53:06]}
{[%emt 00:00:09]} Nxe3 {[%clk 00:41:53]} {[%emt 00:07:52]} 18. Bxe3 {[%clk
00:53:21]} {[%emt 00:00:14]} Rd6 {[%clk 00:38:32]} {[%emt 00:03:52]} 19. Ne4
{[%clk 00:49:37]} {[%emt 00:04:14]} Rdd8 {[%clk 00:38:38]} {[%emt 00:00:23]} 20.
Qc2 {[%clk 00:48:51]} {[%emt 00:01:16]} b6 {[%clk 00:36:03]} {[%emt 00:03:05]}
21. Bxh6 {[%clk 00:47:06]} {[%emt 00:02:15]} Bxe4 {[%clk 00:24:15]} {[%emt
00:12:18]} 22. Bxe4 {[%clk 00:47:03]} {[%emt 00:00:33]} Bxh6 {[%clk 00:22:52]}
{[%emt 00:01:53]} 23. Bxc6 {[%clk 00:47:27]} {[%emt 00:00:06]} Re6 {[%clk
00:23:10]} {[%emt 00:00:12]} 24. Bb5 {[%clk 00:42:06]} {[%emt 00:05:51]} Bg7
{[%clk 00:12:46]} {[%emt 00:10:54]} 25. Re3 {[%clk 00:40:13]} {[%emt 00:02:24]}
Red6 {[%clk 00:11:45]} {[%emt 00:01:30]} 26. Rae1 {[%clk 00:40:11]} {[%emt
00:00:32]} c6 {[%clk 00:11:21]} {[%emt 00:00:54]} 27. Bc4 {[%clk 00:40:32]}
{[%emt 00:00:10]} Kf8 {[%clk 00:09:07]} {[%emt 00:02:43]} 28. Qe2 {[%clk
00:34:45]} {[%emt 00:06:17]} Bf6 {[%clk 00:08:30]} {[%emt 00:01:07]} 29. Rf3
{[%clk 00:31:49]} {[%emt 00:03:26]} Kg7 {[%clk 00:08:16]} {[%emt 00:00:45]} 30.
Qe4 {[%clk 00:31:35]} {[%emt 00:00:44]} Qh3 {[%clk 00:06:33]} {[%emt 00:02:13]}
31. g4 {[%clk 00:28:52]} {[%emt 00:03:13]} Qh4 {[%clk 00:06:58]} {[%emt
00:00:04]} 32. h3 {[%clk 00:29:18]} {[%emt 00:00:04]} R8d7 {[%clk 00:06:35]}
{[%emt 00:00:53]} 33. Kg2 {[%emt 00:01:32]} Re7 {[%clk 00:06:39]} {[%emt
00:00:24]} 34. d4 {[%clk 00:26:17]} {[%emt 00:02:31]} c5 {[%clk 00:01:16]}
{[%emt 00:05:54]} 35. dxe5 {[%clk 00:24:23]} {[%emt 00:02:24]} Bxe5 {[%clk
00:00:49]} {[%emt 00:00:57]} 36. Bxf7 {[%clk 00:18:25]} {[%emt 00:06:28]} Rf6
{[%clk 00:00:36]} {[%emt 00:00:43]} 37. Bc4 {[%clk 00:18:34]} {[%emt 00:00:12]}
Bd6 {[%clk 00:00:36]} {[%emt 00:00:39]} 38. Qa8 {[%clk 00:18:57]} {[%emt
00:00:07]} Rxf3 {[%clk 00:00:42]} {[%emt 00:00:25]} 39. Rxe7+ {[%clk 00:19:22]}
{[%emt 00:00:04]} Qxe7 {[%clk 00:00:52]} {[%emt 00:00:21]} 40. Qg8+ {[%clk
00:17:10]} {[%emt 00:02:41]} Kh6 {[%clk 00:01:00]} {[%emt 00:00:23]} 41. Kxf3
{[%clk 00:14:17]} {[%emt 00:03:23]} Qf6+ {[%clk 00:29:00]} {[%emt 00:02:30]} 42.
Kg2 {[%clk 00:44:29]} {[%emt 00:00:17]} Qe5 {[%clk 00:23:19]} {[%emt 00:06:11]}
43. Kf1 {[%clk 00:42:11]} {[%emt 00:02:48]} Kg5 {[%clk 00:19:03]} {[%emt
00:04:46]} 44. Bd3 {[%clk 00:39:56]} {[%emt 00:02:46]} Qf6 {[%clk 00:18:27]}
{[%emt 00:01:06]} 45. Kg2 {[%emt 00:02:05]} Be5 {[%clk 00:18:03]} {[%emt
00:00:42]} 46. Be4 {[%clk 00:36:12]} {[%emt 00:02:50]} Bd6 {[%clk 00:16:41]}
{[%emt 00:01:53]} 47. Qh7 {[%clk 00:27:10]} {[%emt 00:09:31]} c4 {[%clk
00:07:38]} {[%emt 00:09:34]} 48. f3 {[%clk 00:26:13]} {[%emt 00:01:26]} Bc5
{[%clk 00:07:14]} {[%emt 00:00:54]} 49. h4+ {[%clk 00:25:42]} {[%emt 00:01:01]}
Kf4 {[%clk 00:07:32]} {[%emt 00:00:12]} 50. Qh6+ {[%clk 00:26:06]} {[%emt
00:00:06]} Ke5 {[%clk 00:07:47]} {[%emt 00:00:15]} 51. Bxg6 {[%clk 00:26:14]}
{[%emt 00:00:22]} Kd6 {[%clk 00:06:31]} {[%emt 00:01:46]} 52. Qg5 {[%clk
00:23:26]} {[%emt 00:03:18]} Qxg5 {[%clk 00:06:21]} {[%emt 00:00:40]} 53. hxg5
{[%clk 00:23:54]} {[%emt 00:00:02]} Be3 {[%clk 00:06:44]} {[%emt 00:00:07]} 54.
Kg3 {[%clk 00:24:10]} {[%emt 00:00:14]} Ke5 {[%clk 00:05:23]} {[%emt 00:01:52]}
55. Kh4 {[%clk 00:24:28]} {[%emt 00:00:11]} Bc1 {[%clk 00:04:27]} {[%emt
00:01:25]} 56. Bf7 {[%clk 00:24:10]} {[%emt 00:00:49]} Bxb2 {[%clk 00:04:52]}
{[%emt 00:00:06]} 57. g6 {[%clk 00:24:33]} {[%emt 00:00:07]} Kf6 {[%clk
00:05:00]} {[%emt 00:00:21]} 58. g5+ {[%clk 00:24:42]} {[%emt 00:00:21]} Kg7
{[%clk 00:05:12]} {[%emt 00:00:19]} 59. f4 {[%clk 00:25:07]} {[%emt 00:00:05]}
Bxc3 {[%clk 00:05:25]} {[%emt 00:00:16]} 60. f5 {[%clk 00:25:32]} {[%emt
00:00:05]} 1-0

[Event "Masterklassen-Elit 2025"]
[Site "Uppsala, Sweden"]
[Date "2025.07.03"]
[Round "6.2"]
[White "Ljung, Harald"]
[Black "Thorn, Eric"]
[Result "0-1"]
[TimeControl "90 min for 40 move + 30 min with an increment of 30 sec starting move 1"]
[BlackTitle "FM"]
[WhiteFideId "1738178"]
[BlackFideId "1710729"]
[WhiteElo "2194"]
[BlackElo "2357"]

1. d4 {[%clk 01:30:58]} {[%emt 00:00:02]} Nf6 {[%clk 01:28:39]} {[%emt
00:02:21]} 2. Nf3 {[%clk 01:31:19]} {[%emt 00:00:08]} d5 {[%clk 01:29:05]}
{[%emt 00:00:05]} 3. c4 {[%clk 01:31:09]} {[%emt 00:00:40]} e6 {[%clk
01:28:02]} {[%emt 00:01:33]} 4. e3 {[%clk 01:31:09]} {[%emt 00:00:30]} b6
{[%clk 01:25:54]} {[%emt 00:02:38]} 5. cxd5 {[%clk 01:31:19]} {[%emt 00:00:20]}
exd5 {[%clk 01:24:03]} {[%emt 00:02:22]} 6. Nc3 {[%clk 01:31:19]} {[%emt
00:00:29]} Bd6 {[%clk 01:21:43]} {[%emt 00:02:50]} 7. Be2 {[%clk 01:31:40]}
{[%emt 00:00:10]} O-O {[%clk 01:21:36]} {[%emt 00:00:37]} 8. O-O {[%clk
01:31:51]} {[%emt 00:00:17]} Re8 {[%clk 01:20:14]} {[%emt 00:01:53]} 9. b3
{[%clk 01:26:58]} {[%emt 00:05:23]} a6 {[%clk 01:17:11]} {[%emt 00:03:34]} 10.
Bb2 {[%clk 01:25:55]} {[%emt 00:01:32]} Nbd7 {[%clk 01:16:40]} {[%emt
00:01:00]} 11. Rc1 {[%clk 01:24:09]} {[%emt 00:02:17]} Bb7 {[%clk 01:15:40]}
{[%emt 00:01:30]} 12. Qc2 {[%clk 01:22:17]} {[%emt 00:02:22]} Qe7 {[%clk
01:09:42]} {[%emt 00:06:27]} 13. Bd3 {[%clk 01:14:49]} {[%emt 00:07:57]} g6
{[%clk 01:03:33]} {[%emt 00:06:40]} 14. Ne2 {[%clk 01:11:54]} {[%emt 00:03:25]}
Rac8 {[%clk 01:02:21]} {[%emt 00:01:44]} 15. Qb1 {[%clk 01:00:47]} {[%emt
00:11:36]} Qf8 {[%clk 00:58:39]} {[%emt 00:04:11]} 16. Qa1 {[%clk 00:48:33]}
{[%emt 00:12:45]} Qh6 {[%clk 00:56:18]} {[%emt 00:02:51]} 17. Rcd1 {[%clk
00:47:47]} {[%emt 00:01:16]} Re7 {[%clk 00:50:32]} {[%emt 00:06:15]} 18. a4
{[%clk 00:42:08]} {[%emt 00:06:11]} Rce8 {[%clk 00:48:55]} {[%emt 00:02:07]} 19.
a5 {[%clk 00:38:29]} {[%emt 00:04:09]} b5 {[%clk 00:48:50]} {[%emt 00:00:34]}
20. Ba3 {[%clk 00:35:26]} {[%emt 00:03:34]} b4 {[%clk 00:46:39]} {[%emt
00:02:40]} 21. Bb2 {[%clk 00:35:04]} {[%emt 00:00:52]} Ne4 {[%clk 00:42:51]}
{[%emt 00:04:17]} 22. g3 {[%clk 00:23:08]} {[%emt 00:12:27]} Ndf6 {[%clk
00:41:48]} {[%emt 00:01:32]} 23. Nf4 {[%clk 00:16:14]} {[%emt 00:07:24]} g5
{[%clk 00:40:16]} {[%emt 00:02:03]} 24. Ng2 {[%clk 00:16:09]} {[%emt 00:00:35]}
Bc8 {[%clk 00:35:31]} {[%emt 00:05:15]} 25. h4 {[%clk 00:13:12]} {[%emt
00:03:26]} Bg4 {[%clk 00:26:57]} {[%emt 00:09:04]} 26. Ne5 {[%clk 00:12:55]}
{[%emt 00:00:47]} Bh3 {[%clk 00:24:21]} {[%emt 00:03:07]} 27. Bxe4 {[%clk
00:06:57]} {[%emt 00:06:29]} Nxe4 {[%clk 00:24:08]} {[%emt 00:00:43]} 28. hxg5
{[%clk 00:05:15]} {[%emt 00:02:12]} Nxg5 {[%emt 00:01:11]} 29. Nh4 {[%clk
00:05:06]} {[%emt 00:00:15]} f6 {[%clk 00:22:31]} {[%emt 00:01:49]} 30. Nd3
{[%clk 00:03:45]} {[%emt 00:01:52]} Rg7 {[%clk 00:22:27]} {[%emt 00:00:33]} 31.
Nf4 {[%clk 00:02:16]} {[%emt 00:01:58]} Bxf4 {[%clk 00:22:37]} {[%emt
00:00:21]} 32. exf4 {[%clk 00:02:43]} {[%emt 00:00:03]} Ne4 {[%clk 00:21:20]}
{[%emt 00:01:47]} 33. Kh2 {[%clk 00:01:59]} {[%emt 00:01:15]} Bxf1 {[%clk
00:20:51]} {[%emt 00:00:57]} 34. Rxf1 {[%clk 00:02:26]} {[%emt 00:00:03]} Nd2
{[%clk 00:20:44]} {[%emt 00:00:38]} 35. Rd1 {[%clk 00:02:41]} {[%emt 00:00:15]}
Nf3+ {[%clk 00:21:08]} {[%emt 00:00:06]} 0-1

[Event "Masterklassen-Elit 2025"]
[Site "Uppsala, Sweden"]
[Date "2025.07.03"]
[Round "6.3"]
[White "Carlsson, Ludvig"]
[Black "Ostlund, Joar"]
[Result "0-1"]
[TimeControl "90 min for 40 move + 30 min with an increment of 30 sec starting move 1"]
[WhiteTitle "IM"]
[BlackTitle "FM"]
[WhiteFideId "1727010"]
[BlackFideId "1735020"]
[WhiteElo "2379"]
[BlackElo "2322"]

1. c4 {[%clk 01:30:57]} {[%emt 00:00:02]} e6 {[%clk 01:30:45]} {[%emt
00:00:16]} 2. Nc3 {[%clk 01:31:20]} {[%emt 00:00:08]} d5 {[%clk 01:30:25]}
{[%emt 00:00:49]} 3. d4 {[%clk 01:31:40]} {[%emt 00:00:09]} Nf6 {[%clk
01:29:45]} {[%emt 00:01:11]} 4. Bg5 {[%clk 01:32:01]} {[%emt 00:00:08]} Be7
{[%clk 01:27:46]} {[%emt 00:02:29]} 5. e3 {[%clk 01:32:21]} {[%emt 00:00:10]}
h6 {[%clk 01:27:11]} {[%emt 00:01:06]} 6. Bh4 {[%clk 01:32:42]} {[%emt
00:00:08]} O-O {[%clk 01:27:26]} {[%emt 00:00:15]} 7. Nf3 {[%clk 01:33:07]}
{[%emt 00:00:06]} Nbd7 {[%clk 01:26:31]} {[%emt 00:01:25]} 8. Rc1 {[%clk
01:33:25]} {[%emt 00:00:11]} a6 {[%clk 01:24:50]} {[%emt 00:02:12]} 9. c5
{[%clk 01:33:35]} {[%emt 00:00:19]} c6 {[%clk 01:06:46]} {[%emt 00:18:35]} 10.
Bd3 {[%clk 01:33:58]} {[%emt 00:00:07]} e5 {[%clk 00:59:13]} {[%emt 00:08:03]}
11. dxe5 {[%clk 01:34:21]} {[%emt 00:00:07]} Ne8 {[%clk 00:58:37]} {[%emt
00:01:06]} 12. Bg3 {[%clk 01:34:45]} {[%emt 00:00:07]} Nxc5 {[%clk 00:57:38]}
{[%emt 00:01:28]} 13. Bb1 {[%clk 01:35:08]} {[%emt 00:00:07]} g6 {[%clk
00:53:28]} {[%emt 00:04:40]} 14. Nd4 {[%clk 01:21:41]} {[%emt 00:13:57]} Ng7
{[%clk 00:52:25]} {[%emt 00:01:33]} 15. O-O {[%clk 01:20:47]} {[%emt 00:01:24]}
Nce6 {[%clk 00:49:00]} {[%emt 00:03:55]} 16. f4 {[%clk 01:12:06]} {[%emt
00:09:11]} Nxd4 {[%clk 00:26:10]} {[%emt 00:23:21]} 17. exd4 {[%clk 01:12:20]}
{[%emt 00:00:16]} Bf5 {[%clk 00:26:28]} {[%emt 00:00:12]} 18. Bxf5 {[%clk
01:12:43]} {[%emt 00:00:07]} Nxf5 {[%clk 00:26:54]} {[%emt 00:00:04]} 19. Bf2
{[%clk 01:13:05]} {[%emt 00:00:08]} h5 {[%clk 00:27:11]} {[%emt 00:00:13]} 20.
g3 {[%clk 00:59:36]} {[%emt 00:13:59]} Rc8 {[%clk 00:18:47]} {[%emt 00:08:53]}
21. Na4 {[%clk 00:56:26]} {[%emt 00:03:41]} b5 {[%clk 00:16:02]} {[%emt
00:03:16]} 22. Nc5 {[%clk 00:55:31]} {[%emt 00:01:24]} Bxc5 {[%clk 00:16:26]}
{[%emt 00:00:06]} 23. Rxc5 {[%clk 00:55:56]} {[%emt 00:00:05]} Qd7 {[%clk
00:16:47]} {[%emt 00:00:09]} 24. Qd3 {[%clk 00:55:33]} {[%emt 00:00:52]} Nh6
{[%clk 00:13:12]} {[%emt 00:04:06]} 25. Rfc1 {[%clk 00:54:33]} {[%emt
00:01:30]} Kg7 {[%clk 00:11:56]} {[%emt 00:01:45]} 26. Qc2 {[%clk 00:48:16]}
{[%emt 00:06:48]} Qh3 {[%clk 00:11:34]} {[%emt 00:00:52]} 27. Be1 {[%clk
00:48:43]} {[%emt 00:00:02]} h4 {[%clk 00:07:07]} {[%emt 00:04:58]} 28. Rxc6
{[%clk 00:40:26]} {[%emt 00:08:47]} Rxc6 {[%clk 00:05:38]} {[%emt 00:01:59]} 29.
Qxc6 {[%clk 00:40:54]} {[%emt 00:00:02]} Ng4 {[%clk 00:05:54]} {[%emt
00:00:14]} 30. Qc2 {[%clk 00:41:15]} {[%emt 00:00:08]} Rc8 {[%clk 00:06:11]}
{[%emt 00:00:13]} 31. Bc3 {[%clk 00:41:13]} {[%emt 00:00:33]} b4 {[%clk
00:04:02]} {[%emt 00:02:39]} 32. Qg2 {[%clk 00:41:37]} {[%emt 00:00:06]} Qxg2+
{[%clk 00:04:26]} {[%emt 00:00:06]} 33. Kxg2 {[%clk 00:42:03]} {[%emt
00:00:04]} bxc3 {[%clk 00:04:46]} {[%emt 00:00:11]} 34. Rxc3 {[%clk 00:42:11]}
{[%emt 00:00:22]} Rxc3 {[%clk 00:03:58]} {[%emt 00:01:18]} 35. bxc3 {[%clk
00:42:34]} {[%emt 00:00:07]} hxg3 {[%clk 00:04:09]} {[%emt 00:00:18]} 36. hxg3
{[%clk 00:42:48]} {[%emt 00:00:16]} Ne3+ {[%clk 00:01:43]} {[%emt 00:02:56]} 37.
Kf3 {[%clk 00:42:50]} {[%emt 00:00:27]} Nd1 {[%clk 00:01:39]} {[%emt 00:00:36]}
38. c4 {[%clk 00:43:14]} {[%emt 00:00:06]} dxc4 {[%clk 00:02:05]} {[%emt
00:00:04]} 39. d5 {[%clk 00:43:16]} {[%emt 00:00:28]} Nc3 {[%clk 00:01:49]}
{[%emt 00:00:46]} 40. d6 {[%clk 00:43:43]} {[%emt 00:00:02]} Kf8 {[%clk
00:02:09]} {[%emt 00:00:09]} 41. a3 {[%clk 00:44:06]} {[%emt 00:00:08]} Ke8
{[%clk 00:25:12]} {[%emt 00:07:26]} 42. Ke3 {[%clk 01:12:17]} {[%emt 00:02:18]}
Kd7 {[%clk 00:23:23]} {[%emt 00:02:21]} 43. Kd4 {[%clk 01:11:47]} {[%emt
00:01:00]} Nb5+ {[%clk 00:20:17]} {[%emt 00:03:37]} 44. Kxc4 {[%clk 01:12:10]}
{[%emt 00:00:06]} Nxa3+ {[%clk 00:20:42]} {[%emt 00:00:05]} 45. Kb4 {[%clk
01:12:37]} {[%emt 00:00:03]} Nc2+ {[%clk 00:20:19]} {[%emt 00:00:52]} 46. Ka5
{[%clk 01:12:50]} {[%emt 00:00:19]} Nd4 {[%clk 00:20:35]} {[%emt 00:00:13]} 47.
g4 {[%clk 01:13:13]} {[%emt 00:00:07]} g5 {[%clk 00:19:27]} {[%emt 00:01:38]}
48. f5 {[%clk 01:13:41]} {[%emt 00:00:02]} Nc6+ {[%clk 00:19:47]} {[%emt
00:00:10]} 0-1

[Event "Masterklassen-Elit 2025"]
[Site "Uppsala, Sweden"]
[Date "2025.07.03"]
[Round "6.4"]
[White "Strom-Engdahl, Alexander"]
[Black "Andersson, Tommy"]
[Result "1-0"]
[TimeControl "90 min for 40 move + 30 min with an increment of 30 sec starting move 1"]
[WhiteTitle "FM"]
[BlackTitle "IM"]
[WhiteFideId "1741586"]
[BlackFideId "1703803"]
[WhiteElo "2320"]
[BlackElo "2348"]

1. Nf3 {[%clk 01:30:24]} {[%emt 00:00:35]} Nf6 {[%clk 01:29:28]} {[%emt
00:01:32]} 2. c4 {[%clk 01:30:24]} {[%emt 00:00:31]} c5 {[%clk 01:29:20]}
{[%emt 00:00:38]} 3. Nc3 {[%clk 01:30:02]} {[%emt 00:00:51]} Nc6 {[%clk
01:26:48]} {[%emt 00:03:03]} 4. g3 {[%clk 01:28:29]} {[%emt 00:02:03]} e5
{[%clk 01:23:45]} {[%emt 00:03:32]} 5. Bg2 {[%clk 01:28:16]} {[%emt 00:00:42]}
d6 {[%clk 01:22:15]} {[%emt 00:02:02]} 6. O-O {[%clk 01:28:06]} {[%emt
00:00:39]} g6 {[%clk 01:16:47]} {[%emt 00:05:59]} 7. d3 {[%clk 01:26:08]}
{[%emt 00:02:27]} Bg7 {[%clk 01:16:00]} {[%emt 00:01:18]} 8. Ne1 {[%clk
01:24:13]} {[%emt 00:02:23]} h6 {[%clk 01:14:43]} {[%emt 00:01:48]} 9. Nc2
{[%clk 01:22:07]} {[%emt 00:02:35]} O-O {[%clk 01:14:40]} {[%emt 00:00:33]} 10.
Rb1 {[%clk 01:21:56]} {[%emt 00:00:41]} Be6 {[%clk 01:08:09]} {[%emt 00:07:03]}
11. Ne3 {[%clk 01:14:28]} {[%emt 00:07:56]} Qd7 {[%clk 01:07:09]} {[%emt
00:01:31]} 12. Ned5 {[%clk 01:14:04]} {[%emt 00:00:54]} Bxd5 {[%clk 00:55:18]}
{[%emt 00:12:22]} 13. Nxd5 {[%clk 01:10:04]} {[%emt 00:04:29]} Nxd5 {[%clk
00:55:37]} {[%emt 00:00:10]} 14. cxd5 {[%clk 01:09:46]} {[%emt 00:00:48]} Nb4
{[%clk 00:54:34]} {[%emt 00:01:34]} 15. a3 {[%clk 01:07:01]} {[%emt 00:03:15]}
Na6 {[%clk 00:54:59]} {[%emt 00:00:06]} 16. b4 {[%clk 01:05:17]} {[%emt
00:02:13]} cxb4 {[%clk 00:54:04]} {[%emt 00:01:26]} 17. axb4 {[%clk 01:05:29]}
{[%emt 00:00:17]} Nc7 {[%clk 00:50:01]} {[%emt 00:04:33]} 18. Bb2 {[%clk
00:58:58]} {[%emt 00:06:59]} Qb5 {[%clk 00:42:20]} {[%emt 00:08:13]} 19. Qb3
{[%clk 00:55:46]} {[%emt 00:03:41]} Qd7 {[%clk 00:36:16]} {[%emt 00:06:35]} 20.
f4 {[%clk 00:51:08]} {[%emt 00:05:08]} exf4 {[%clk 00:33:16]} {[%emt 00:03:31]}
21. gxf4 {[%clk 00:51:01]} {[%emt 00:00:36]} Nb5 {[%clk 00:26:42]} {[%emt
00:07:05]} 22. f5 {[%clk 00:45:34]} {[%emt 00:05:56]} Bxb2 {[%clk 00:21:20]}
{[%emt 00:05:53]} 23. Qxb2 {[%clk 00:45:19]} {[%emt 00:00:43]} Qe7 {[%clk
00:20:21]} {[%emt 00:01:29]} 24. Be4 {[%clk 00:41:00]} {[%emt 00:04:49]} f6
{[%clk 00:15:16]} {[%emt 00:05:37]} 25. fxg6 {[%clk 00:39:20]} {[%emt
00:02:09]} f5 {[%clk 00:15:38]} {[%emt 00:00:09]} 26. Bg2 {[%clk 00:38:03]}
{[%emt 00:01:45]} Qe3+ {[%clk 00:14:59]} {[%emt 00:01:10]} 27. Kh1 {[%clk
00:36:07]} {[%emt 00:02:25]} Rae8 {[%clk 00:14:03]} {[%emt 00:01:27]} 28. Rbe1
{[%clk 00:34:26]} {[%emt 00:02:10]} Nd4 {[%clk 00:12:34]} {[%emt 00:01:59]} 29.
Qc1 {[%clk 00:31:26]} {[%emt 00:03:31]} Qxc1 {[%clk 00:07:52]} {[%emt
00:05:13]} 30. Rxc1 {[%clk 00:31:43]} {[%emt 00:00:12]} Rxe2 {[%clk 00:06:20]}
{[%emt 00:02:02]} 31. Rc7 {[%clk 00:28:28]} {[%emt 00:03:45]} b5 {[%clk
00:04:39]} {[%emt 00:02:11]} 32. h4 {[%clk 00:25:04]} {[%emt 00:03:54]} Re5
{[%clk 00:01:29]} {[%emt 00:03:40]} 33. Ra1 {[%clk 00:19:04]} {[%emt 00:06:30]}
Rf6 {[%clk 00:00:36]} {[%emt 00:01:24]} 34. Raxa7 {[%clk 00:18:35]} {[%emt
00:00:59]} Re8 {[%clk 00:00:57]} {[%emt 00:00:08]} 35. h5 {[%clk 00:15:31]}
{[%emt 00:03:34]} f4 {[%clk 00:00:37]} {[%emt 00:00:51]} 36. Rg7+ {[%clk
00:15:37]} {[%emt 00:00:23]} Kf8 {[%clk 00:00:58]} {[%emt 00:00:09]} 37. Raf7+
{[%clk 00:14:31]} {[%emt 00:01:36]} Rxf7 {[%clk 00:01:26]} {[%emt 00:00:02]} 38.
Rxf7+ {[%clk 00:14:54]} {[%emt 00:00:07]} Kg8 {[%clk 00:01:50]} {[%emt
00:00:06]} 39. Rxf4 {[%clk 00:15:16]} {[%emt 00:00:08]} Ne2 {[%clk 00:01:37]}
{[%emt 00:00:43]} 40. Rf6 {[%clk 00:11:09]} {[%emt 00:04:27]} Re5 {[%clk
00:00:45]} {[%emt 00:01:33]} 41. Bf3 {[%clk 00:04:28]} {[%emt 00:07:10]} Ng3+
{[%clk 00:27:56]} {[%emt 00:03:19]} 42. Kh2 {[%clk 00:31:39]} {[%emt 00:03:17]}
Rg5 {[%clk 00:24:21]} {[%emt 00:04:07]} 43. Be4 {[%clk 00:23:42]} {[%emt
00:08:25]} Nxh5 {[%clk 00:17:30]} {[%emt 00:07:23]} 44. Rxd6 {[%clk 00:23:36]}
{[%emt 00:00:36]} Nf4 {[%clk 00:14:21]} {[%emt 00:03:39]} 45. Rd8+ {[%clk
00:20:44]} {[%emt 00:03:22]} Kg7 {[%clk 00:14:44]} {[%emt 00:00:08]} 46. d6
{[%clk 00:20:59]} {[%emt 00:00:14]} Kf6 {[%clk 00:10:19]} {[%emt 00:04:55]} 47.
Rf8+ {[%clk 00:20:38]} {[%emt 00:00:51]} 1-0